lending/lending_fUSD_20241007
["ID","MTS","AMOUNT","RATE_DAILY","PERIOD"]
[340002557,1728314570807,-1650.0,0.000106,2]
[340002558,1728314570830,-222.58899851,0.000107,2]
[340002559,1728314570852,-6988.1238,0.000107,2]
[340002560,1728314570876,-8012.5251,0.000108,2]
[340002561,1728314570899,-497.2572,0.000108,2]
[340002562,1728314570921,-182.1578,0.000108,2]
[340002563,1728314570945,-1002.5141,0.00010845,2]
[340002564,1728314570968,-1000.0,0.00010859,2]
[340002565,1728314571086,-3107.095,0.00010899,2]
[340002566,1728314571110,-4571.7977,0.000109,2]
[340002567,1728314571136,-157.92,0.00010959,2]
[340002568,1728314708541,2608.02030149,0.00011,2]
[340002577,1728314903562,1095.90814672,0.00012,30]
[340002606,1728315031466,-877.98772699,0.00010567,2]
[340002607,1728315031481,-40.01227301,0.00010567,2]
[340002608,1728315031490,-402.19437012,0.000109,2]
[340002609,1728315031499,-412.60219885,0.000109,2]
[340002610,1728315031511,-256.41264469,0.000109,2]
[340002612,1728315031526,-1282.57722256,0.000109,2]
[340002614,1728315031535,-573.87931727,0.000109,2]
[340002616,1728315031546,-1091.57272942,0.000109,2]
[340002617,1728315031556,-162.77,0.00010959,2]
[340002618,1728315031565,-590.84,0.00010959,2]
[340002619,1728315031574,-811.62,0.00010959,2]
[340002620,1728315031583,-154.93619136,0.00010973,2]
[340002621,1728315031592,-414.80453939,0.00010973,2]
[340002622,1728315031603,-85.19546061,0.00010973,2]
[340002623,1728315031612,-500.0,0.00010973,2]
[340002624,1728315031621,-150.0,0.00010998,2]
[340002625,1728315031630,-1000.0,0.00010999,2]
[340002626,1728315031639,-524.31213341,0.00010999,2]
[340002627,1728315031647,-502.16234457,0.00010999,2]
[340002628,1728315031657,-500.0,0.00010999,2]
[340002629,1728315031666,-500.0,0.00010999,2]
[340002630,1728315031675,-500.0,0.00010999,2]
[340002631,1728315031684,-500.0,0.00010999,2]
[340002632,1728315031693,-481.67204763,0.00010999,2]
[340002633,1728315031702,-500.0,0.00010999,2]
[340002634,1728315031711,-427.14727838,0.00010999,2]
[340002635,1728315031720,-500.0,0.00010999,2]
[340002636,1728315031730,-500.0,0.00010999,2]
[340002637,1728315031739,-500.0,0.00010999,2]
[340002638,1728315031748,-500.0,0.00010999,2]
[340002639,1728315031757,-500.0,0.00010999,2]
[340002640,1728315031766,-364.25568768,0.00010999,2]
[340002641,1728315031775,-500.0,0.00010999,2]
[340002642,1728315031784,-500.0,0.00010999,2]
[340002643,1728315031793,-502.55283803,0.00010999,2]
[340002644,1728315031802,-389612.64493658,0.00011,2]
[340002645,1728315031813,-6817.17459968,0.00011,2]
[340002646,1728315031824,-926.43635877,0.00011,2]
[340002647,1728315031835,-3949.7614307,0.00011,2]
[340002648,1728315031846,-2300.0,0.00011,2]
[340002650,1728315031862,-841.40168387,0.00011,2]
[340002652,1728315031873,-857.30470671,0.00011,2]
[340002654,1728315031884,-4993.424,0.00011,2]
[340002657,1728315031895,-7914.48,0.00011,2]
[340002659,1728315031911,-726.67746112,0.00011,2]
[340002660,1728315031921,-2414.07668284,0.00011,2]
[340002661,1728315031932,-7098.22734583,0.00011,2]
[340002662,1728315031954,-415.98592689,0.00011,2]
[340002663,1728315031964,-6386.0,0.00011,2]
[340002667,1728315037529,-3525.10113565,0.00011,2]
[340002668,1728315037646,-644568.73313865,0.00011,2]
[340002669,1728315037674,-4455.8989701,0.00011,2]
[340002670,1728315037701,-484.0774728,0.00011,2]
[340002671,1728315037813,-1002.46740004,0.00011,2]
[340002672,1728315037824,-2000.0,0.00011,2]
[340002673,1728315037836,-5364.2574944,0.00011,2]
[340002674,1728315037851,-5146.02669942,0.00011,2]
[340002683,1728315039448,-1080.28693289,0.00011,2]
[340002684,1728315039503,-3361.07830627,0.00011,2]
[340002685,1728315039515,-1497.19475649,0.00011,2]
[340002686,1728315039527,-145411.86969388,0.00011,2]
[340002687,1728315039745,-288384.34221439,0.00011,2]
[340002688,1728315039757,-1182.8,0.00011,2]
[340002689,1728315039768,-1519.83374327,0.00011,2]
[340002690,1728315039779,-13478.79616655,0.00011,2]
[340002691,1728315039791,-631.80673865,0.00011,2]
[340002692,1728315039803,-639.64674,0.00011,2]
[340002694,1728315039938,-10725.72993336,0.00011,2]
[340002749,1728315042587,-163.76125556,0.000109,2]
[340002750,1728315042597,-378.16414101,0.00011,2]
[340002751,1728315042608,-697.68583,0.00011,2]
[340002752,1728315042619,-720.02828238,0.00011,2]
[340002753,1728315042629,-502.49912,0.00011,2]
[340002754,1728315042644,-858.6849167,0.00011,2]
[340002755,1728315042655,-5309.29148547,0.00011,2]
[340002756,1728315042666,-1308.00000413,0.00011,2]
[340002757,1728315042676,-929.96123073,0.00011,2]
[340002768,1728315045647,-382828.20162039,0.00011,2]
[340002769,1728315045783,-31822.2976061,0.00011,2]
[340002770,1728315045795,-474.24290149,0.00011,2]
[340002771,1728315045811,-1120.63845351,0.00011,2]
[340003084,1728315088098,10000.0,0.00023,60]
[340003085,1728315115183,10000.0,0.00023,60]
[340003086,1728315133186,10000.0,0.00023,60]
[340003087,1728315161674,10000.0,0.00023,60]
[340003088,1728315980309,447.0,9.589e-05,2]
[340003112,1728316231549,-593.19,0.0001078,2]
[340003113,1728316231559,-157.971,0.0001078,2]
[340003114,1728316231568,-150.0,0.00010899,2]
[340003115,1728316231578,-177.07830343,0.000109,2]
[340003116,1728316231587,-174.7373,0.000109,2]
[340003117,1728316231597,-2257.1777,0.000109,2]
[340003118,1728316231606,-166.78438949,0.000109,2]
[340003119,1728316231615,-382.5862115,0.000109,2]
[340003120,1728316231624,-1474.6495,0.000109,2]
[340003121,1728316231633,-442.3731676,0.000109,2]
[340003122,1728316231643,-167.43902084,0.000109,2]
[340003123,1728316231652,-161.91,0.00010959,2]
[340003124,1728316231661,-173.32,0.00010959,2]
[340003125,1728316231670,-866.61,0.00010959,2]
[340003126,1728316231679,-159.8,0.00010959,2]
[340003127,1728316231689,-150.0,0.00010959,2]
[340003128,1728316231698,-455.17768684,0.00010973,2]
[340003129,1728316231707,-500.0,0.00010973,2]
[340003130,1728316231716,-502.78078168,0.00010973,2]
[340003131,1728316231725,-203.37692669,0.00010973,2]
[340003132,1728316231734,-250.0,0.00010974,2]
[340003133,1728316231744,-722.52382964,0.0001099,2]
[340003134,1728316231753,-187.5332026,0.0001099,2]
[340003135,1728316231763,-187.5332026,0.0001099,2]
[340003136,1728316231774,-412.60561762,0.00010999,2]
[340003137,1728316231783,-152.11531837,0.00010999,2]
[340003138,1728316231794,-631.13731421,0.00010999,2]
[340003139,1728316231804,-500.68734814,0.00010999,2]
[340003140,1728316231813,-500.0,0.00010999,2]
[340003141,1728316231827,-169.0686501,0.00010999,2]
[340003142,1728316231836,-539.51013365,0.00010999,2]
[340003143,1728316231846,-500.0,0.00010999,2]
[340003144,1728316231855,-500.0,0.00010999,2]
[340003145,1728316231866,-500.0,0.00010999,2]
[340003146,1728316231875,-500.0,0.00010999,2]
[340003147,1728316231885,-500.0,0.00010999,2]
[340003148,1728316231895,-500.0,0.00010999,2]
[340003149,1728316231906,-500.0,0.00010999,2]
[340003150,1728316231915,-500.0,0.00010999,2]
[340003151,1728316231925,-466.72539341,0.00010999,2]
[340003152,1728316231935,-198.1744672,0.00010999,2]
[340003153,1728316231944,-504.81661164,0.00010999,2]
[340003154,1728316231954,-500.0,0.00010999,2]
[340003155,1728316231963,-270.47152053,0.00010999,2]
[340003156,1728316231973,-500.0,0.00010999,2]
[340003157,1728316231983,-500.0,0.00010999,2]
[340003158,1728316231992,-186.6696913,0.00010999,2]
[340003159,1728316232002,-500.0,0.00010999,2]
[340003160,1728316232012,-500.0,0.00010999,2]
[340003161,1728316232028,-500.0,0.00010999,2]
[340003162,1728316232037,-500.0,0.00010999,2]
[340003163,1728316232047,-500.0,0.00010999,2]
[340003164,1728316232056,-500.0,0.00010999,2]
[340003165,1728316232066,-500.0,0.00010999,2]
[340003166,1728316232076,-566257.95716533,0.00011,2]
[340003167,1728316232262,-933.57750501,0.00011,2]
[340003168,1728316232276,-533998.94264741,0.00011,2]
[340003169,1728316232287,-527981.49347122,0.00011,2]
[340003170,1728316232298,-548.6778876,0.00011,2]
[340003171,1728316232406,-765.29022052,0.00011,2]
[340003172,1728316232417,-1023.36525247,0.00011,2]
[340003173,1728316232428,-696.77431602,0.00011,2]
[340003174,1728316232440,-470.63449296,0.00011,2]
[340003175,1728316232452,-1090.78663098,0.00011,2]
[340003176,1728316232463,-584.08763229,0.00011,2]
[340003177,1728316232475,-1182.73708964,0.00011,2]
[340003178,1728316232487,-2135.8388,0.00011,2]
[340003179,1728316232498,-10552.6900996,0.00011,2]
[340003180,1728316232513,-980.23063339,0.00011,2]
[340003181,1728316232527,-5599.02414876,0.00011,2]
[340003182,1728316232538,-3576.97871244,0.00011,2]
[340003183,1728316232549,-4477.92071747,0.00011,2]
[340003184,1728316232561,-777.95581629,0.00011,2]
[340003185,1728316232572,-300.75376989,0.00011,2]
[340003186,1728316232587,-5512.90917337,0.00011,2]
[340003187,1728316232597,-475.92038193,0.00011,2]
[340003188,1728316232609,-544.02,0.00011,2]
[340003189,1728316232620,-630.08,0.00011,2]
[340003190,1728316232638,-1281.55537654,0.00011,2]
[340003191,1728316232649,-5673.50863488,0.00011,2]
[340003192,1728316232660,-603.03497768,0.00011,2]
[340003193,1728316232671,-6384.35,0.00011,2]
[340003195,1728316237698,-250.0,0.00010916,2]
[340003196,1728316237708,-16336.4354222,0.00011,2]
[340003197,1728316237720,-446.64273953,0.00011,2]
[340003198,1728316237919,-5037.25274,0.00011,2]
[340003205,1728316239640,-4692.95725782,0.00011,2]
[340003207,1728316240109,-58.37356818,0.00011,2]
[340003208,1728316241494,-382.866,0.00011,2]
[340003221,1728316242694,-1858.93673647,0.00011,2]
[340003223,1728316242750,-847850.01674936,0.00011,2]
[340003224,1728316242761,-306.38000006,0.00011,2]
[340003225,1728316242773,-1095.78215054,0.00011,2]
[340003226,1728316242843,-5731.1975172,0.00011,2]
[340003227,1728316242915,-2581.2614539,0.00011,2]
[340003228,1728316242926,-9260.49516554,0.00011,2]
[340003229,1728316242938,-20210.57204682,0.00011,2]
[340003238,1728316245613,-207.98,0.00010959,2]
[340003240,1728316245622,-8898.01495485,0.00011,2]
[340003243,1728316245634,-4943.43172972,0.00011,2]
[340003245,1728316245646,-4865.54622921,0.00011,2]
[340003248,1728316245671,-103434.92018028,0.00011,2]
[340003250,1728316245738,-10.86296835,0.00011,2]
[340003251,1728316245786,-402.5699328,0.00011,2]
[340003252,1728316245797,-619.7,0.00011,2]
[340003253,1728316245844,-12340.284517,0.00011,2]
[340003254,1728316245855,-511.51386836,0.00011,2]
[340003255,1728316245867,-337.975,0.00011,2]
[340003266,1728316334663,1117.01920495,0.00010999,3]
[340003268,1728316490998,436.68,9.256e-05,2]
[340003269,1728316766379,250.0,9.913e-05,2]
[340003270,1728316786764,250.0,9.913e-05,2]
[340003271,1728316812832,357.21,9.909e-05,2]
[340003272,1728316954659,223.26,9.919e-05,2]
[340003273,1728316995507,1000.0,0.00023,68]
[340003275,1728317007896,1000.0,0.00023,60]
[340003278,1728317029947,911.9042337,0.00023,60]
[340003279,1728317052966,183.38,9.91e-05,2]
[340003280,1728317069492,414.84,8.219e-05,2]
[340003281,1728317088041,23900.0,9.906e-05,2]
[340003282,1728317118304,561.9,9.989e-05,2]
[340003283,1728317259331,2975.73,9.913e-05,2]
[340003284,1728317259357,598.42540508,9.913e-05,2]
[340003285,1728317259379,772.45459492,9.913e-05,2]
[340003288,1728317319433,250.0,9.915e-05,2]
[340003289,1728317321185,1000.0,9.915e-05,2]
[340003302,1728317431802,-750.197829,0.00010418,2]
[340003303,1728317431812,-14.65166463,0.00010471,2]
[340003304,1728317432012,-400.18833537,0.00010471,2]
[340003305,1728317432022,-150.0,0.00010799,2]
[340003306,1728317432033,-300.0,0.00010799,2]
[340003307,1728317432043,-150.20666463,0.000108,2]
[340003308,1728317432055,-1574.25063537,0.000108,2]
[340003309,1728317432064,-214.6745,0.000108,2]
[340003311,1728317432074,-262.1187,0.000108,2]
[340003313,1728317432083,-4191.86851158,0.000108,2]
[340003338,1728317437860,-7920.67808842,0.000108,2]
[340003340,1728317437870,-619.3891,0.000108,2]
[340003342,1728317437879,-268.6748,0.000108,2]
[340003343,1728317437889,-965.39071439,0.000108,2]
[340003344,1728317437898,-326.5,0.0001087,2]
[340003345,1728317437907,-326.5,0.00010872,2]
[340003346,1728317437916,-326.5,0.00010875,2]
[340003347,1728317437925,-326.5,0.00010878,2]
[340003348,1728317437935,-326.5,0.00010881,2]
[340003349,1728317437944,-499.99,0.00010881,2]
[340003350,1728317437953,-1910.11,0.00010881,2]
[340003351,1728317437962,-150.99,0.00010881,2]
[340003352,1728317437971,-1503.59,0.00010881,2]
[340003353,1728317437981,-299.99,0.00010881,2]
[340003354,1728317437990,-150.99,0.00010883,2]
[340003355,1728317437999,-847.8,0.00010883,2]
[340003356,1728317438009,-8989.21339552,0.00010883,2]
[340003357,1728317438044,-43499.17660448,0.00010883,2]
[340003358,1728317438054,-2491.72,0.00010883,2]
[340003359,1728317438064,-1320.14,0.00010883,2]
[340003360,1728317438074,-326.5,0.00010884,2]
[340003361,1728317438083,-1175.21,0.00010884,2]
[340003362,1728317438092,-326.5,0.00010887,2]
[340003363,1728317438102,-326.5,0.0001089,2]
[340003364,1728317438111,-3494.75794608,0.0001089,2]
[340003365,1728317438121,-4533.71300792,0.0001089,2]
[340003366,1728317438131,-326.5,0.00010892,2]
[340003367,1728317438140,-326.5,0.00010895,2]
[340003368,1728317438149,-326.5,0.00010898,2]
[340003369,1728317438159,-3766.59193081,0.00010899,2]
[340003370,1728317438168,-36444.0479,0.000109,2]
[340003371,1728317438177,-19099.0093,0.000109,2]
[340003372,1728317438186,-2937.659,0.000109,2]
[340003373,1728317438196,-433.2501,0.000109,2]
[340003374,1728317438205,-178.519045,0.000109,2]
[340003375,1728317438216,-1682.2527,0.000109,2]
[340003376,1728317438225,-56440.0832,0.000109,2]
[340003377,1728317438246,-5207.528,0.000109,2]
[340003378,1728317438256,-950.4596,0.000109,2]
[340003379,1728317438264,-2400.0,0.000109,2]
[340003380,1728317438273,-165.81338366,0.000109,2]
[340003381,1728317438283,-159.42797736,0.000109,2]
[340003382,1728317438293,-167.43902082,0.000109,2]
[340003383,1728317438302,-7500.0,0.000109,2]
[340003384,1728317438311,-207.61965061,0.000109,2]
[340003385,1728317438320,-1308.57734526,0.000109,2]
[340003386,1728317438329,-255.05747434,0.000109,2]
[340003387,1728317438339,-294.91544506,0.000109,2]
[340003388,1728317438348,-326.5,0.00010901,2]
[340003389,1728317438357,-326.5,0.00010904,2]
[340003390,1728317438366,-326.5,0.00010907,2]
[340003391,1728317438375,-326.5,0.00010909,2]
[340003392,1728317438384,-326.5,0.00010912,2]
[340003393,1728317438393,-326.5,0.00010915,2]
[340003394,1728317438402,-326.5,0.00010918,2]
[340003395,1728317438411,-326.5,0.00010921,2]
[340003396,1728317438420,-326.5,0.00010924,2]
[340003397,1728317438429,-500.0,0.00010958,2]
[340003398,1728317438438,-580.68664722,0.00010958,2]
[340003399,1728317438447,-164.49,0.00010959,2]
[340003400,1728317438456,-229.98,0.00010959,2]
[340003401,1728317438465,-3882.29,0.00010959,2]
[340003402,1728317438475,-250.0,0.00010959,2]
[340003403,1728317438484,-3857.61,0.00010959,2]
[340003404,1728317438493,-157.92,0.00010959,2]
[340003405,1728317438502,-500.0,0.00010973,2]
[340003406,1728317438511,-505.06779306,0.00010973,2]
[340003407,1728317438520,-2311156.80721032,0.00011,2]
[340003408,1728317438531,-8084.66951695,0.00011,2]
[340003409,1728317438543,-1953.74880888,0.00011,2]
[340003410,1728317438553,-2483.10500878,0.00011,2]
[340003411,1728317438568,-1287.53235509,0.00011,2]
[340003412,1728317438579,-10942.58864569,0.00011,2]
[340003413,1728317438590,-31209.35401069,0.00011,2]
[340003414,1728317438600,-1229.20443431,0.00011,2]
[340003415,1728317438611,-104501.17447615,0.00011,2]
[340003416,1728317438620,-225994.55664338,0.00011,2]
[340003417,1728317438631,-1091.41262625,0.00011,2]
[340003418,1728317438646,-621.29,0.00011,2]
[340003419,1728317439805,-674.9983212,0.00011,2]
[340003420,1728317439861,-5023.99999999,0.00011,2]
[340003421,1728317439914,-279.53397495,0.00011,2]
[340003422,1728317439926,-639.693237,0.00011,2]
[340003423,1728317439967,-499.39408115,0.00011,2]
[340003424,1728317439978,-263.494,0.00011,2]
[340003425,1728317440171,-17912.61485738,0.00011,2]
[340003426,1728317440183,-847.9,0.00011,2]
[340003427,1728317440194,-128020.42030696,0.00011,2]
[340003453,1728317442805,-29774.60931259,0.00011,2]
[340003454,1728317442860,-434.12000044,0.00011,2]
[340003455,1728317442871,-1576.76008579,0.00011,2]
[340003456,1728317442914,-298.65768015,0.00011,2]
[340003457,1728317443022,-1250.0,0.00011,2]
[340003458,1728317443034,-758.49771291,0.00011,2]
[340003459,1728317443046,-542.2,0.00011,2]
[340003460,1728317443057,-759.99998,0.00011,2]
[340003461,1728317443068,-710.0,0.00011,2]
[340003462,1728317443087,-26146.02109414,0.00011,2]
[340003463,1728317443130,-7345.5574327,0.00011,2]
[340003493,1728317445805,-2557.43083036,0.00011,2]
[340003494,1728317445817,-5834.87436924,0.00011,2]
[340003495,1728317445857,-7124.98166088,0.00011,2]
[340003496,1728317445911,-324.43250001,0.00011,2]
[340003497,1728317445923,-281.74546058,0.00011,2]
[340003498,1728317445934,-1665.89,0.00011,2]
[340003499,1728317445945,-1600.0,0.00011,2]
[340003500,1728317446017,-12025.6277018,0.00011,2]
[340003501,1728317446030,-3107.94503315,0.00011,2]
[340003502,1728317446041,-283.83765539,0.00011,2]
[340003503,1728317446052,-631.49999999,0.00011,2]
[340003504,1728317446063,-752.9375,0.00011,2]
[340003505,1728317446077,-255.00000002,0.00011,2]
[340003506,1728317446089,-608.21731146,0.00011,2]
[340003507,1728317446132,-4373.47558227,0.00011,2]
[340003510,1728317497328,-2512.0055,0.000107,2]
[340003511,1728317497368,-349.6297,0.000108,2]
[340003512,1728317497407,-633.6029,0.000108,2]
[340003513,1728317497445,-1475.3221,0.000108,2]
[340003514,1728317497482,-555.93636604,0.00010958,2]
[340003515,1728317497513,-10473.50343396,0.00010993,2]
[340003517,1728317667060,154.01,0.00011572,3]
[340003518,1728317783935,485.17,8.961e-05,2]
[340003519,1728318286886,248.226519,0.00010216,2]
[340003520,1728318334864,27856.5741378,0.00010267,5]
[340003521,1728318334893,45684.49298083,0.00010267,5]
[340003522,1728318407869,1293.14452897,0.00010999,3]
[340003523,1728318407901,1293.14452897,0.00010999,3]
[340003524,1728318407933,1293.14452897,0.00010999,3]
[340003525,1728318407975,436.07343226,0.00010999,3]
[340003526,1728318418245,838.0,8.961e-05,2]
[340003527,1728318424423,-1300.0,0.000104,3]
[340003528,1728318424450,-857.07109671,0.00010999,3]
[340003529,1728318424475,-1293.14452897,0.00010999,3]
[340003530,1728318424503,-199.8705864,0.00010999,3]
[340003531,1728318424529,-1293.14452897,0.00010999,3]
[340003532,1728318424555,-200.1294136,0.00010999,3]
[340003533,1728318424579,-1293.14452897,0.00010999,3]
[340003534,1728318424603,-1293.14452897,0.00010999,3]
[340003535,1728318424626,-1293.14452897,0.00010999,3]
[340003536,1728318424651,-1293.14452897,0.00010999,3]
[340003537,1728318424678,-1293.14452897,0.00010999,3]
[340003538,1728318424704,-1293.14452897,0.00010999,3]
[340003539,1728318424749,2700.0,0.000105,3]
[340003540,1728318426860,4100.0,0.000106,3]
[340003541,1728318429041,5500.0,0.000107,3]
[340003542,1728318431153,6900.0,0.000108,3]
[340003543,1728318433258,1300.0,0.000109,3]
[340003547,1728318460309,12493.9736521,0.00010167,2]
[340003548,1728318486762,50000.0,0.000138,3]
[340003549,1728318486786,50000.0,0.000138,3]
[340003550,1728318486810,50000.0,0.000138,3]
[340003570,1728318573703,460.91,8.396e-05,2]
[340003585,1728318631978,-800.0,0.00010244,2]
[340003586,1728318631988,-223.26,0.00010258,2]
[340003587,1728318631997,-250.0,0.00010368,2]
[340003588,1728318632007,-355.05,0.0001042,2]
[340003589,1728318632016,-23900.0,0.00010457,2]
[340003590,1728318632025,-4859.94255773,0.00010457,2]
[340003591,1728318632035,-587.19,0.00010556,2]
[340003592,1728318632044,-460.91,0.0001066,2]
[340003593,1728318632053,-1275.3606,0.00010793,2]
[340003594,1728318632062,-250.0,0.00010794,2]
[340003595,1728318632072,-499.99,0.00010794,2]
[340003596,1728318632081,-150.0,0.00010799,2]
[340003597,1728318632091,-262.1187,0.000108,2]
[340003598,1728318632100,-72847.5064,0.000108,2]
[340003599,1728318632110,-4010.1616,0.000108,2]
[340003600,1728318632119,-200.0,0.00010822,2]
[340003601,1728318632128,-13268.6891,0.00010893,2]
[340003602,1728318632138,-76609.1624,0.00010893,2]
[340003603,1728318632147,-6733.87054932,0.00010899,2]
[340003604,1728318632156,-167.43902082,0.000109,2]
[340003605,1728318632166,-295.31819533,0.000109,2]
[340003606,1728318632175,-312.77268838,0.000109,2]
[340003607,1728318632184,-161.56,0.00010959,2]
[340003608,1728318632193,-250.0,0.00010959,2]
[340003609,1728318632202,-275.54,0.00010959,2]
[340003610,1728318632213,-239.13,0.00010959,2]
[340003611,1728318632222,-162.43468024,0.00010973,2]
[340003612,1728318632231,-2674.95672997,0.00010999,2]
[340003613,1728318632240,-631.12618431,0.00010999,2]
[340003614,1728318632250,-57052.39963529,0.00011,2]
[340003615,1728318632264,-4574.0,0.00011,2]
[340003616,1728318632276,-311.315,0.00011,2]
[340003617,1728318632286,-38266.20000004,0.00011,2]
[340003626,1728318637988,-890.42064607,0.00011,2]
[340003627,1728318638000,-1343.67852087,0.00011,2]
[340003628,1728318638113,-25703.34005454,0.00011,2]
[340003639,1728318646054,-616.2,0.00011,2]
[340003642,1728318853159,1002.69109002,0.00023,60]
[340003643,1728319044699,800.0,0.00023,60]
[340003644,1728319056411,168.52,8.559e-05,2]
[340003645,1728319203785,150.0,8.559e-05,2]
[340003646,1728319203982,150.0,8.559e-05,2]
[340003647,1728319204184,150.0,8.559e-05,2]
[340003648,1728319204404,150.0,8.559e-05,2]
[340003649,1728319204677,248.01732605,8.559e-05,2]
[340003650,1728319246410,434.15,8.826e-05,2]
[340003657,1728319645610,300.0,0.000104,3]
[340003658,1728319647903,600.0,0.000105,3]
[340003659,1728319649351,338.82992589,9.925e-05,2]
[340003660,1728319649854,900.0,0.000106,3]
[340003661,1728319651949,1200.0,0.000107,3]
[340003662,1728319654109,1500.0,0.000108,3]
[340003663,1728319656216,300.0,0.000109,3]
[340003664,1728319720287,168.52,8.243e-05,2]
[340003682,1728319806000,1160.95,0.0001003,2]
[340003683,1728319807658,496.14,0.0001003,2]
[340003684,1728319821958,226.41,0.0001003,2]
[340003689,1728319832483,-177.52,0.00010248,2]
[340003690,1728319832493,-225.56073912,0.00010337,2]
[340003691,1728319832503,-511.37,0.00010437,2]
[340003692,1728319832513,-300.0,0.00010519,2]
[340003693,1728319832523,-2649.78236802,0.0001052,2]
[340003694,1728319832538,-21250.21763198,0.0001052,2]
[340003695,1728319832547,-250.0,0.00010527,2]
[340003696,1728319832556,-1000.0,0.00010599,2]
[340003697,1728319832566,-14788.9092,0.000106,2]
[340003698,1728319832576,-250.0,0.00010605,2]
[340003699,1728319832585,-12862.0,0.00010781,2]
[340003700,1728319832594,-262.1187,0.00010793,2]
[340003701,1728319832603,-323.0012,0.000108,2]
[340003702,1728319832612,-854.917,0.000108,2]
[340003703,1728319832622,-214.6745,0.000108,2]
[340003704,1728319832631,-499.99,0.000108,2]
[340003705,1728319832640,-10214.2993,0.00010824,2]
[340003706,1728319832650,-150.0,0.00010889,2]
[340003707,1728319832659,-167376.47159478,0.0001089,2]
[340003708,1728319832668,-474.552,0.00010899,2]
[340003709,1728319832677,-157.972,0.00010899,2]
[340003710,1728319832686,-292.3429,0.000109,2]
[340003711,1728319832696,-178.519045,0.000109,2]
[340003712,1728319832707,-18073.6837,0.000109,2]
[340003713,1728319832716,-12224.2977,0.000109,2]
[340003714,1728319832726,-2413.0385,0.000109,2]
[340003715,1728319832735,-37547.5905,0.000109,2]
[340003716,1728319832744,-500.0,0.000109,2]
[340003717,1728319832754,-165.32788073,0.000109,2]
[340003718,1728319832763,-3792.48014578,0.000109,2]
[340003719,1728319832772,-273.15448588,0.000109,2]
[340003720,1728319832782,-4412.09240732,0.000109,2]
[340003721,1728319832791,-520.61423649,0.000109,2]
[340003722,1728319832801,-465.52879948,0.000109,2]
[340003723,1728319832811,-1000.0,0.00010924,2]
[340003724,1728319832821,-218.46960755,0.00010958,2]
[340003725,1728319832830,-162.78,0.00010959,2]
[340003726,1728319832840,-220.43,0.00010959,2]
[340003727,1728319832849,-250.0,0.00010959,2]
[340003728,1728319832859,-163.79,0.00010959,2]
[340003729,1728319832868,-502.25534723,0.00010973,2]
[340003731,1728319832877,-1031.65501529,0.0001099,2]
[340003733,1728319832887,-1031.65501529,0.0001099,2]
[340003734,1728319832896,-1031.65501529,0.0001099,2]
[340003735,1728319832988,-646.0,0.00011,2]
[340003736,1728319832998,-23774.79880214,0.00011,2]
[340003737,1728319833209,-1048.4055,0.00011,2]
[340003738,1728319833221,-3839.44275338,0.00011,2]
[340003739,1728319833233,-538.88,0.00011,2]
[340003741,1728319838269,-255.436755,0.00011,2]
[340003742,1728319838280,-320.563245,0.00011,2]
[340003743,1728319838289,-861.0145913,0.00011,2]
[340003744,1728319838325,-639.01,0.00011,2]
[340003745,1728319838489,-1003.58971506,0.00011,2]
[340003747,1728319838501,-6336.50345608,0.00011,2]
[340003894,1728319840179,-725.34496151,0.00011,2]